fUST/lending_fUST_20250125
["ID","MTS","AMOUNT","RATE_DAILY","PERIOD"]
[350286295,1737768646682,-210.50059647,0.0001811,2]
[350286298,1737768646692,-4106.11,0.0001811,2]
[350286301,1737768646702,-416.3008603,0.0001811,2]
[350286304,1737768646711,-500.0,0.0001811,2]
[350286306,1737768646720,-550.14,0.0001811,2]
[350286308,1737768646730,-500.0,0.0001811,2]
[350286310,1737768646740,-257.83070362,0.0001811,2]
[350286312,1737768646749,-500.0,0.0001811,2]
[350286314,1737768646758,-522.37202241,0.0001811,2]
[350286315,1737768646768,-2455.61,0.0001811,2]
[350286317,1737768646778,-724.94,0.0001811,2]
[350286319,1737768646788,-503.29653967,0.0001811,2]
[350286321,1737768646797,-502.57342086,0.0001811,2]
[350286323,1737768646807,-1832.79,0.0001811,2]
[350286325,1737768646818,-500.0,0.0001811,2]
[350286327,1737768646827,-501.57565455,0.0001811,2]
[350286329,1737768646837,-339.4134893,0.00018111,2]
[350286332,1737768646858,-232.3165107,0.00018111,2]
[350286334,1737768646868,-500.0,0.00018111,2]
[350286336,1737768646877,-500.0,0.00018111,2]
[350286338,1737768646888,-500.0,0.00018111,2]
[350286340,1737768646898,-500.0,0.00018111,2]
[350286342,1737768646908,-269.56001141,0.00018111,2]
[350286344,1737768646917,-500.0,0.00018111,2]
[350286346,1737768646928,-500.0,0.00018111,2]
[350286348,1737768646937,-500.0,0.00018111,2]
[350286349,1737768646947,-500.0,0.00018111,2]
[350286351,1737768646956,-500.0,0.00018111,2]
[350286353,1737768646967,-500.0,0.00018111,2]
[350286355,1737768646977,-500.0,0.00018111,2]
[350286357,1737768646987,-500.0,0.00018111,2]
[350286359,1737768646997,-500.0,0.00018111,2]
[350286361,1737768647006,-511.70838886,0.00018111,2]
[350286363,1737768647016,-161.5999415,0.00018111,2]
[350286551,1737768889241,2000.0,0.000176,2]
[350286557,1737769056207,163.6436588,0.00017109,2]
[350286558,1737769138911,273.146767,0.00013973,2]
[350286559,1737769300360,388.614,0.0001734,2]
[350286561,1737769366516,392.673,0.0001734,2]
[350286565,1737769496781,314.34592296,0.00017474,2]
[350286566,1737769505031,314.34592296,0.00017474,2]
[350286568,1737769513716,639.42000106,0.00017552,2]
[350286570,1737769529088,372.69861565,0.00017552,2]
[350286669,1737769832613,-307.32040217,0.00017999,2]
[350286671,1737769832623,-189.32047964,0.00017999,2]
[350286673,1737769832632,-500.0,0.00018097,2]
[350286675,1737769832642,-500.0,0.00018097,2]
[350286677,1737769832651,-4184.5,0.00018097,2]
[350286679,1737769832660,-1000.0,0.00018097,7]
[350286681,1737769832670,-500.0,0.00018097,2]
[350286683,1737769832679,-645.96,0.00018097,2]
[350286685,1737769832688,-500.0,0.00018097,2]
[350286687,1737769832699,-500.0,0.00018097,2]
[350286689,1737769832708,-3574.70449272,0.00018097,2]
[350286691,1737769832726,-2139.12550728,0.00018097,2]
[350286693,1737769832736,-585.43,0.00018097,2]
[350286695,1737769832748,-502.20325643,0.00018098,2]
[350286697,1737769832757,-548.41,0.00018098,2]
[350286699,1737769832767,-500.0,0.00018098,2]
[350286701,1737769832777,-631.70418567,0.00018098,2]
[350286703,1737769832787,-500.0,0.00018098,2]
[350286705,1737769832796,-500.0,0.00018098,2]
[350286707,1737769832805,-500.0,0.00018098,2]
[350286710,1737769832815,-500.0,0.00018098,2]
[350286713,1737769832824,-500.0,0.00018098,2]
[350286716,1737769832835,-500.0,0.00018098,2]
[350286719,1737769832844,-500.0,0.00018098,2]
[350286722,1737769832853,-500.0,0.00018098,2]
[350286725,1737769832862,-500.0,0.00018098,2]
[350286728,1737769832871,-503.62090026,0.00018098,2]
[350286731,1737769832881,-500.0,0.00018098,2]
[350286734,1737769832890,-500.0,0.00018098,2]
[350286736,1737769832899,-502.85123144,0.00018098,2]
[350286738,1737769832912,-3414.96042621,0.00018098,2]
[350286740,1737769832929,-6458.08957379,0.00018098,2]
[350286742,1737769832940,-242.73218616,0.00018098,2]
[350286744,1737769832950,-500.0,0.00018098,2]
[350286746,1737769832959,-500.0,0.00018098,2]
[350286748,1737769832970,-500.0,0.00018098,2]
[350286750,1737769832980,-200.0,0.00018098,2]
[350286752,1737769832989,-500.0,0.00018098,2]
[350286754,1737769832998,-500.0,0.00018098,2]
[350286755,1737769833008,-507.57962643,0.00018098,2]
[350286756,1737769833019,-509.7898291,0.00018098,2]
[350286757,1737769833029,-500.0,0.00018098,2]
[350286759,1737769833039,-500.0,0.00018098,2]
[350286761,1737769833050,-4622.85,0.00018098,2]
[350286762,1737769833060,-500.0,0.00018098,2]
[350286763,1737769833070,-502.01015391,0.00018098,2]
[350286764,1737769833081,-3667.41,0.00018098,2]
[350286765,1737769833091,-502.67353409,0.00018098,2]
[350286766,1737769833101,-500.0,0.00018098,2]
[350286767,1737769833112,-500.0,0.00018098,2]
[350286768,1737769833122,-500.0,0.00018098,2]
[350286769,1737769833133,-500.0,0.00018098,2]
[350286770,1737769833143,-500.0,0.00018098,2]
[350286771,1737769833153,-618.11,0.00018098,2]
[350286772,1737769833163,-2150.82,0.00018098,2]
[350286773,1737769833173,-500.0,0.00018098,2]
[350286774,1737769833183,-510.57597229,0.00018098,2]
[350286775,1737769833195,-500.0,0.00018098,2]
[350286776,1737769833206,-500.0,0.00018098,2]
[350286777,1737769833215,-1615.76,0.00018098,2]
[350286778,1737769833226,-500.0,0.00018098,2]
[350286779,1737769833236,-487.10329627,0.00018098,2]
[350286780,1737769833246,-209.17656204,0.00018098,2]
[350286781,1737769833255,-502.19695841,0.00018098,2]
[350286782,1737769833265,-500.0,0.00018098,2]
[350286783,1737769833275,-500.0,0.00018098,2]
[350286784,1737769833288,-500.0,0.00018098,2]
[350286785,1737769833298,-500.0,0.00018098,2]
[350286786,1737769833308,-539.69,0.00018098,2]
[350286787,1737769833318,-1245.27,0.00018098,2]
[350286788,1737769833328,-500.0,0.00018098,2]
[350286789,1737769833337,-746.96,0.00018098,2]
[350286790,1737769833347,-500.0,0.00018098,2]
[350286791,1737769833357,-500.0,0.00018098,2]
[350286792,1737769833367,-3841.91,0.00018098,2]
[350286793,1737769833378,-500.0,0.00018098,2]
[350286794,1737769833388,-500.0,0.00018098,2]
[350286795,1737769833399,-500.0,0.00018098,2]
[350286796,1737769833409,-500.0,0.00018098,2]
[350286797,1737769833418,-1309.69553693,0.00018098,2]
[350286798,1737769833437,-106.43446307,0.00018098,2]
[350286799,1737769833448,-500.0,0.00018098,2]
[350286800,1737769833457,-50.27614629,0.00018098,2]
[350286846,1737769838375,-3847.11385371,0.00018098,2]
[350286848,1737769838385,-2011.89,0.00018098,2]
[350286850,1737769838394,-601.89087655,0.00018098,2]
[350286852,1737769838403,-765.66,0.00018098,2]
[350286854,1737769838412,-500.0,0.00018098,2]
[350286855,1737769838421,-500.0,0.00018098,2]
[350286858,1737769838431,-5669.97,0.00018098,2]
[350286860,1737769838440,-500.0,0.00018098,2]
[350286861,1737769838451,-548.05,0.00018098,2]
[350286863,1737769838461,-500.0,0.00018098,2]
[350286865,1737769838471,-500.0,0.00018098,2]
[350286868,1737769838481,-500.0,0.00018098,2]
[350286869,1737769838490,-500.0,0.00018098,2]
[350286872,1737769838499,-500.0,0.00018098,2]
[350286874,1737769838509,-631.7945488,0.00018098,2]
[350286875,1737769838518,-500.0,0.00018098,2]
[350286878,1737769838528,-500.0,0.00018098,2]
[350286879,1737769838537,-500.0,0.00018098,2]
[350286882,1737769838546,-1730.96,0.00018098,2]
[350286883,1737769838555,-500.0,0.00018098,2]
[350286885,1737769838565,-3935.03,0.00018098,2]
[350286887,1737769838574,-500.0,0.00018098,2]
[350286890,1737769838584,-500.0,0.00018098,2]
[350286892,1737769838593,-868.97,0.00018098,2]
[350286894,1737769838606,-381.83698975,0.00018098,2]
[350286896,1737769838618,-1971.45301025,0.00018098,2]
[350286898,1737769838628,-597.95,0.00018098,2]
[350286900,1737769838637,-500.0,0.00018098,2]
[350286902,1737769838646,-500.0,0.00018098,2]
[350286904,1737769838656,-1756.42,0.00018098,2]
[350286906,1737769838665,-767.98,0.00018098,2]
[350286908,1737769838675,-3014.56909263,0.00018099,5]
[350286910,1737769838684,-500.0,0.00018099,2]
[350286912,1737769838693,-53.55957968,0.00018099,2]
[350286914,1737769838707,-446.44042032,0.00018099,2]
[350286916,1737769838717,-500.0,0.00018099,2]
[350286918,1737769838727,-500.0,0.00018099,2]
[350286920,1737769838736,-500.0,0.00018099,2]
[350286922,1737769838746,-500.0,0.00018099,2]
[350286924,1737769838755,-771.4,0.00018099,2]
[350286926,1737769838765,-500.0,0.00018099,2]
[350286929,1737769838774,-516.69,0.00018099,2]
[350286931,1737769838783,-500.0,0.00018099,2]
[350286933,1737769838793,-676.16,0.00018099,2]
[350286934,1737769838802,-690.16,0.00018099,2]
[350286937,1737769838811,-275.91360929,0.00018099,2]
[350286939,1737769838823,-304.90639071,0.00018099,2]
[350286941,1737769838832,-185.33875369,0.00018099,2]
[350286942,1737769838843,-405.85748006,0.00018099,2]
[350286943,1737769838879,-350.66376625,0.00018099,2]
[350286944,1737769838888,-660.48,0.00018099,2]
[350286945,1737769838898,-500.0,0.00018099,2]
[350286946,1737769838907,-534.37,0.00018099,2]
[350286947,1737769838916,-500.0,0.00018099,2]
[350286948,1737769838928,-500.0,0.00018099,2]
[350286949,1737769838938,-500.0,0.00018099,2]
[350286950,1737769838947,-500.0,0.00018099,2]
[350286951,1737769838956,-500.0,0.00018099,2]
[350286952,1737769838966,-500.0,0.00018099,2]
[350286953,1737769838975,-674.49,0.00018099,2]
[350286954,1737769838984,-737.29,0.00018099,2]
[350286955,1737769838993,-500.0,0.00018099,2]
[350286957,1737769839004,-500.0,0.00018099,2]
[350286958,1737769839014,-500.0,0.00018099,2]
[350286960,1737769839023,-500.0,0.00018099,2]
[350286962,1737769839032,-500.0,0.00018099,2]
[350286965,1737769839042,-856.7,0.00018099,2]
[350286966,1737769839051,-613.30097454,0.00018099,2]
[350287126,1737769840566,-500.0,0.00018098,2]
[350287128,1737769840576,-214.78080813,0.00018098,2]
[350287130,1737769840587,-285.21919187,0.00018098,2]
[350287132,1737769840596,-44.93480813,0.00018099,2]
[350287426,1737769843572,-114.16421733,0.00018099,2]
[350287428,1737769843583,-500.0,0.00018099,2]
[350287430,1737769843592,-500.0,0.00018099,2]
[350287432,1737769843602,-500.0,0.00018099,2]
[350287434,1737769843611,-502.83424001,0.00018099,2]
[350287436,1737769843620,-500.0,0.00018099,2]
[350287438,1737769843629,-508.70932523,0.00018099,2]
[350287440,1737769843639,-500.0,0.00018099,2]
[350287442,1737769843658,-500.0,0.00018099,2]
[350287444,1737769843674,-500.0,0.00018099,2]
[350287446,1737769843683,-500.0,0.00018099,2]
[350287448,1737769843693,-184.85217589,0.00018099,2]
[350287451,1737769843705,-315.14782411,0.00018099,2]
[350287453,1737769843715,-60.33417389,0.00018099,2]
[350287455,1737769843730,-992.36582611,0.00018099,2]
[350287457,1737769843739,-1925.81,0.00018099,2]
[350287459,1737769843748,-1980.81,0.00018099,2]
[350287461,1737769843758,-593.77,0.00018099,2]
[350287463,1737769843767,-500.0,0.00018099,2]
[350287465,1737769843777,-500.0,0.00018099,2]
[350287467,1737769843787,-500.0,0.00018099,2]
[350287470,1737769843796,-500.0,0.00018099,2]
[350287487,1737769843936,-500.0,0.00018099,2]
[350287489,1737769843953,-502.27,0.00018099,2]
[350287491,1737769843963,-500.0,0.00018099,2]
[350287493,1737769843974,-503.67201098,0.00018099,2]
[350287495,1737769843983,-500.0,0.00018099,2]
[350287497,1737769843992,-500.0,0.00018099,2]
[350287499,1737769844001,-675.45004129,0.00018099,2]
[350287501,1737769844014,-2044.51440567,0.00018099,2]
[350287768,1737769846501,-639.42000106,0.00017999,2]
[350287770,1737769846511,-500.0,0.00018098,2]
[350287772,1737769846520,-180.48149253,0.00018098,2]
[350287774,1737769846529,-565.66041569,0.00018098,2]
[350287776,1737769846539,-175.00247839,0.00018099,2]
[350287778,1737769846550,-664.6591486,0.00018099,2]
[350288839,1737769892729,200.0,0.00024,120]
[350288840,1737769958910,300.0,0.00024,120]
[350288841,1737770016795,5928.4316504,0.00017098,2]
[350288842,1737770047764,376.438,0.0001734,2]
[350288843,1737770062130,379.796111,0.00017098,2]
[350288844,1737770067171,259.489428,0.00013973,2]
[350288845,1737770086712,1746.966036,0.00017235,2]
[350288846,1737770135244,500.0,0.00017465,2]
[350288847,1737770150711,500.0,0.00017465,2]
[350288848,1737770165728,500.0,0.00017465,2]
[350288849,1737770181249,500.0,0.00017465,2]
[350288850,1737770196183,500.0,0.00017465,2]
[350288851,1737770211092,500.0,0.00017465,2]
[350288852,1737770226526,500.0,0.00017465,2]
[350288853,1737770242192,500.0,0.00017465,2]
[350288854,1737770251504,500.0,0.00017465,2]
[350288855,1737770449360,300.0,0.00017558,2]
[350288856,1737770457515,300.0,0.00017558,2]
[350288857,1737770524910,1230.1212294,0.00017227,2]
[350288858,1737770593414,10443.0233472,0.00017226,2]
[350288859,1737770649474,300.0,0.00017557,2]
[350288860,1737770657656,300.0,0.00017557,2]
[350288861,1737770705070,362.379,0.0001734,2]
[350288864,1737770848403,1500.50675355,0.00017536,2]
[350288865,1737770926272,12746.0902117,0.00017094,2]
[350289053,1737771032815,-300.0,0.00017733,2]
[350289055,1737771032824,-300.0,0.00017912,2]
[350289057,1737771032834,-511.45064468,0.00017994,2]
[350289059,1737771032844,-394.0,0.00018,2]
[350289061,1737771032853,-300.0,0.00018092,2]
[350289063,1737771032863,-500.0,0.00018093,2]
[350289065,1737771032872,-113.13409799,0.00018093,2]
[350289068,1737771032890,-386.86590201,0.00018093,2]
[350289070,1737771032899,-329.54009799,0.00018093,2]
[350289072,1737771032911,-3680.59990201,0.00018093,2]
[350289074,1737771032920,-1000.0,0.00018093,7]
[350289076,1737771032930,-715.84,0.00018093,2]
[350289078,1737771032939,-1567.6,0.00018093,2]
[350289080,1737771032948,-500.0,0.00018093,2]
[350289082,1737771032957,-500.0,0.00018093,2]
[350289084,1737771032967,-619.04,0.00018093,2]
[350289086,1737771032976,-1928.06,0.00018093,2]
[350289088,1737771032986,-188.07721194,0.00018093,2]
[350289090,1737771032995,-525.21,0.00018093,2]
[350289092,1737771033005,-3482.23827072,0.00018093,2]
[350289094,1737771033020,-1993.51172928,0.00018093,2]
[350289095,1737771033030,-500.0,0.00018093,2]
[350289096,1737771033040,-832.76,0.00018093,2]
[350289097,1737771033049,-7115.90581647,0.00018094,2]
[350289098,1737771033061,-2345.77418353,0.00018094,2]
[350289099,1737771033070,-500.0,0.00018094,2]
[350289100,1737771033080,-500.0,0.00018094,2]
[350289101,1737771033089,-4430.23,0.00018094,2]
[350289102,1737771033099,-500.0,0.00018094,2]
[350289103,1737771033108,-500.0,0.00018094,2]
[350289104,1737771033117,-592.36,0.00018094,2]
[350289105,1737771033127,-1114.21410875,0.00018094,2]
[350289680,1737771038646,-539.35280457,0.00017913,2]
[350289682,1737771038655,-561.03,0.00018093,2]
[350289684,1737771038666,-500.0,0.00018093,2]
[350289686,1737771038676,-2400.38589125,0.00018094,2]
[350289688,1737771038685,-500.0,0.00018094,2]
[350289690,1737771038695,-2061.2,0.00018094,2]
[350289692,1737771038704,-500.0,0.00018094,2]
[350289694,1737771038714,-70.9113863,0.00018094,2]
[350289698,1737771038745,-1477.5286137,0.00018094,2]
[350289700,1737771038754,-500.0,0.00018094,2]
[350289702,1737771038764,-500.0,0.00018094,2]
[350289704,1737771038773,-1193.38,0.00018094,2]
[350289706,1737771038783,-517.2,0.00018094,2]
[350289708,1737771038792,-500.0,0.00018094,2]
[350289710,1737771038802,-500.0,0.00018094,2]
[350289712,1737771038811,-3677.47446298,0.00018094,2]
[350290063,1737771045238,-5565.14024,0.00017913,2]
[350290068,1737771046751,-5283.82266314,0.00017913,2]
[350290069,1737771046762,-4.35553702,0.00018094,2]
[350290070,1737771046772,-500.0,0.00018094,2]
[350290071,1737771046781,-1357.13,0.00018094,2]
[350290072,1737771046791,-389.44666364,0.00018094,2]
[350290074,1737771131254,174.67,0.00024,120]
[350290075,1737771188318,246.514956,0.00013973,2]
[350290079,1737771345447,305.63061056,0.0001746,2]
[350290080,1737771353595,305.63061056,0.0001746,2]
[350290081,1737771362311,159.89239171,0.00017537,2]
[350290082,1737771373298,347.001,0.000172,2]
[350290083,1737771377504,159.89239171,0.00017537,2]
[350290084,1737771394716,159.89239171,0.00017537,2]
[350290085,1737771412438,159.89239171,0.00017537,2]
[350290086,1737771430178,159.89239171,0.00017537,2]
[350290087,1737771445487,159.89239171,0.00017537,2]
[350290088,1737771461330,159.89239171,0.00017537,2]
[350290089,1737771478463,159.89239171,0.00017537,2]
[350290090,1737771494326,159.89239171,0.00017537,2]
[350290091,1737771504231,165.0,0.00024,120]
[350290097,1737771807982,1995.9807164,0.00017086,2]
[350290101,1737771916750,500.0,0.0001757,2]
[350290105,1737771973593,314.669991,0.00017059,2]
[350290111,1737772056107,332.589,0.000172,2]
[350290114,1737772082551,-159.89239171,0.00017714,2]
[350290115,1737772082573,-779.76403078,0.00017925,2]
[350290116,1737772082596,-1000.0,0.00017938,2]
[350290117,1737772082617,-802.86851086,0.00017989,2]
[350290118,1737772082640,-447.51931413,0.00017991,2]
[350290119,1737772082661,-502.19972652,0.00018073,2]
[350290120,1737772082687,-300.0,0.00018089,2]
[350290121,1737772082711,-500.0,0.0001809,2]
[350290122,1737772082736,-500.0,0.0001809,2]
[350290123,1737772082760,-706.84,0.0001809,2]
[350290124,1737772082785,-3917.41,0.0001809,2]
[350290125,1737772082807,-500.0,0.0001809,2]
[350290126,1737772082829,-1000.0,0.0001809,7]
[350290127,1737772082852,-1462.43,0.0001809,2]
[350290128,1737772082875,-1539.49,0.0001809,2]
[350290129,1737772082906,-524.16,0.0001809,2]
[350290130,1737772082930,-64.946026,0.0001809,2]
[350290153,1737772172163,-500.0,0.00018089,2]
[350290154,1737772172190,-300.0,0.00018089,2]
[350290155,1737772172219,-3754.19,0.00018089,2]
[350290156,1737772172241,-1000.0,0.00018089,7]
[350290157,1737772172477,-677.39,0.00018089,2]
[350290158,1737772172500,-1475.34,0.00018089,2]
[350290159,1737772172522,-435.053974,0.0001809,2]
[350290160,1737772172545,-500.0,0.0001809,2]
[350290161,1737772172567,-483.4268271,0.0001809,2]
[350290162,1737772172590,-500.0,0.0001809,2]
[350290163,1737772172613,-500.0,0.0001809,2]
[350290164,1737772172634,-847.13,0.0001809,2]
[350290165,1737772172655,-500.0,0.0001809,2]
[350290166,1737772172676,-5509.21,0.0001809,2]
[350290167,1737772172699,-6694.3191989,0.0001809,2]
[350290168,1737772189810,234.189208,0.00013973,2]
[350290190,1737772231983,-391.57939982,0.0001799,2]
[350290191,1737772231994,-500.0,0.00018089,2]
[350290192,1737772232006,-595.36,0.00018089,2]
[350290193,1737772232016,-300.0,0.00018089,2]
[350290194,1737772232025,-500.0,0.00018089,2]
[350290195,1737772232035,-1929.7,0.00018089,2]
[350290196,1737772232045,-533.62805799,0.00018089,2]
[350290197,1737772232055,-537.66,0.00018089,2]
[350290198,1737772232065,-1920.79138497,0.0001809,2]
[350290199,1737772232077,-679.04941613,0.0001809,2]
[350290200,1737772232086,-204.40661331,0.0001809,2]
[350290201,1737772232103,-295.59338669,0.0001809,2]
[350290202,1737772232112,-149.25661331,0.0001809,2]
[350290266,1737772237779,-502.32,0.00018089,2]
[350290268,1737772237789,-500.0,0.00018089,2]
[350290270,1737772237799,-350.74338669,0.0001809,2]
[350290272,1737772237810,-500.0,0.0001809,2]
[350290274,1737772237819,-4337.42,0.0001809,2]
[350290276,1737772237829,-500.0,0.0001809,2]
[350290278,1737772237838,-500.0,0.0001809,2]
[350290280,1737772237847,-567.68,0.0001809,2]
[350290282,1737772237856,-3432.43,0.0001809,2]
[350290284,1737772237866,-346.44010782,0.0001809,2]
[350290286,1737772237875,-2017.03,0.0001809,2]
[350290288,1737772237884,-500.0,0.0001809,2]
[350290290,1737772237893,-1517.19,0.0001809,2]
[350290292,1737772237903,-500.0,0.0001809,2]
[350290294,1737772237912,-1202.24,0.0001809,2]
[350290296,1737772237921,-500.0,0.0001809,2]
[350290298,1737772237930,-500.0,0.0001809,2]
[350290300,1737772237939,-1764.21,0.0001809,2]
[350290302,1737772237949,-500.0,0.0001809,2]
[350290304,1737772237958,-1337.09,0.0001809,2]
[350290306,1737772237967,-3783.18,0.0001809,2]
[350290308,1737772237976,-500.0,0.0001809,2]
[350290310,1737772237986,-5640.31,0.0001809,2]
[350290312,1737772237995,-500.0,0.0001809,2]
[350290314,1737772238005,-500.0,0.0001809,2]
[350290316,1737772238014,-500.0,0.0001809,2]
[350290318,1737772238023,-500.0,0.0001809,2]
[350290320,1737772238032,-500.0,0.0001809,2]
[350290322,1737772238043,-500.0,0.0001809,2]
[350290324,1737772238052,-500.0,0.0001809,2]
[350290326,1737772238061,-500.0,0.0001809,2]
[350290328,1737772238070,-512.03320888,0.0001809,2]
[350290330,1737772238079,-500.0,0.0001809,2]
[350290332,1737772238087,-500.0,0.0001809,2]
[350290334,1737772238097,-1738.1,0.0001809,2]
[350290336,1737772238105,-3954.76,0.0001809,2]
[350290338,1737772238115,-500.0,0.0001809,2]
[350290340,1737772238124,-2360.0,0.0001809,2]
[350290342,1737772238133,-594.93,0.0001809,2]
[350290344,1737772238142,-1783.65,0.0001809,2]
[350290346,1737772238151,-500.0,0.0001809,2]
[350290348,1737772238160,-1061.4,0.0001809,2]
[350290350,1737772238169,-2001.34,0.0001809,2]
[350290352,1737772238179,-500.0,0.0001809,2]
[350290354,1737772238188,-498.07149214,0.0001809,2]
[350290356,1737772238197,-589.87,0.0001809,2]
[350290358,1737772238206,-500.0,0.0001809,2]
[350290360,1737772238215,-20237.42092642,0.00018091,5]
[350290362,1737772238224,-3919.89220557,0.00018091,5]
[350290364,1737772238233,-500.0,0.00018091,2]
[350290366,1737772238242,-500.0,0.00018091,2]
[350290368,1737772238252,-500.0,0.00018091,2]
[350290369,1737772238261,-500.0,0.00018091,2]
[350290372,1737772238271,-500.0,0.00018091,2]
[350290374,1737772238280,-808.48,0.00018091,2]
[350290376,1737772238289,-500.0,0.00018091,2]
[350290378,1737772238300,-500.0,0.00018091,2]
[350290380,1737772238309,-503.27955672,0.00018091,2]
[350290382,1737772238319,-538.24,0.00018091,2]
[350290384,1737772238328,-668.82,0.00018091,2]
[350290386,1737772238337,-975.21,0.00018091,2]
[350290388,1737772238346,-500.0,0.00018091,2]
[350290390,1737772238356,-500.0,0.00018091,2]
[350290392,1737772238366,-684.14,0.00018091,2]
[350290394,1737772238375,-723.48,0.00018091,2]
[350290396,1737772238384,-610.15,0.00018091,2]
[350290398,1737772238393,-500.0,0.00018091,2]
[350290400,1737772238402,-500.0,0.00018091,2]
[350290402,1737772238412,-500.0,0.00018091,2]
[350290404,1737772238422,-500.0,0.00018091,2]
[350290406,1737772238431,-503.14085265,0.00018091,2]
[350290408,1737772238440,-536.75,0.00018091,2]
[350290410,1737772238449,-500.0,0.00018091,2]
[350290412,1737772238458,-673.86,0.00018091,2]
[350290413,1737772238467,-500.0,0.00018091,2]
[350290416,1737772238477,-500.0,0.00018091,2]
[350290417,1737772238487,-500.0,0.00018091,2]
[350290420,1737772238496,-500.0,0.00018091,2]
[350290421,1737772238505,-763.2,0.00018091,2]
[350290424,1737772238514,-500.0,0.00018091,2]
[350290425,1737772238523,-882.78,0.00018091,2]
[350290427,1737772238532,-500.0,0.00018091,2]
[350290429,1737772238542,-365.3170493,0.00018091,2]
[350290432,1737772238555,-134.6829507,0.00018091,2]
[350290434,1737772238564,-500.0,0.00018091,2]
[350290436,1737772238574,-788.47,0.00018091,2]
[350290438,1737772238583,-500.0,0.00018091,2]
[350290440,1737772238592,-500.0,0.00018091,2]
[350290442,1737772238601,-500.0,0.00018091,2]
[350290444,1737772238610,-501.9298297,0.00018091,2]
[350290446,1737772238619,-500.0,0.00018091,2]
[350290448,1737772238629,-500.0,0.00018091,2]
[350290450,1737772238639,-500.0,0.00018091,2]
[350290452,1737772238648,-500.0,0.00018091,2]
[350290454,1737772238657,-500.0,0.00018091,2]
[350290456,1737772238666,-500.0,0.00018091,2]
[350290458,1737772238675,-500.0,0.00018091,2]
[350290459,1737772238684,-1887.8,0.00018091,2]
[350290461,1737772238693,-500.0,0.00018091,2]
[350290463,1737772238702,-500.0,0.00018091,2]
[350290465,1737772238711,-500.0,0.00018091,2]
[350290467,1737772238721,-500.0,0.00018091,2]
[350290469,1737772238732,-502.18,0.00018091,2]
[350290471,1737772238743,-500.0,0.00018091,2]
[350290474,1737772238752,-16175.91,0.00018091,2]
[350290476,1737772238762,-500.0,0.00018091,2]
[350290478,1737772238772,-500.0,0.00018091,2]
[350290480,1737772238780,-153.626983,0.00018091,2]
[350290482,1737772238789,-500.0,0.00018091,2]
[350290484,1737772238800,-159.923879,0.00018091,2]
[350290486,1737772238810,-500.0,0.00018091,2]
[350290488,1737772238820,-159.923879,0.00018091,2]
[350290490,1737772238829,-500.0,0.00018091,2]
[350290492,1737772238839,-500.0,0.00018091,2]
[350290494,1737772238848,-500.0,0.00018091,2]
[350290496,1737772238857,-30695.56,0.00018091,2]
[350290498,1737772238867,-324.484128,0.00018091,2]
[350290500,1737772238876,-324.484128,0.00018091,2]
[350290502,1737772238885,-500.0,0.00018091,2]
[350290504,1737772238895,-500.0,0.00018091,2]
[350290506,1737772238905,-151.0,0.00018091,2]
[350290508,1737772238914,-813.57,0.00018091,2]